bitfinex/quotes_ETHUSD_20250126
["timestamp","ask_amount","ask_price","bid_price","bid_amount"]
[1737912435448,3.01052,3321.7,3321.3,0.55]
[1737912438470,3.01052,3321.7,3321.2,3.01094]
[1737912438471,3.01052,3321.7,3321.1,0.55]
[1737912438652,3.692846,3321.7,3321.1,0.55]
[1737912439697,0.08896948,3321.6,3321.1,0.55]
[1737912441256,0.8024,3321.5,3321.1,0.55]
[1737912441994,0.08896948,3321.4,3321.1,0.55]
[1737912447160,0.08896948,3321.4,3320.8,3.80728]
[1737912447361,3.09977948,3321.4,3320.8,3.80724]
[1737912447560,3.09977948,3321.4,3320.9,0.55]
[1737912447868,3.09977948,3321.4,3320.9,3.56123]
[1737912448071,3.09977948,3321.4,3320.9,0.55]
[1737912452329,3.09977948,3321.4,3320.9,3.56123]
[1737912455591,0.08896948,3321.4,3320.9,3.56123]
[1737912456614,0.08896948,3321.4,3321.3,3.01086]
[1737912456815,3.01031,3322.0,3321.4,0.55]
[1737912457034,0.08896375,3321.8,3321.4,3.56071]
[1737912457395,0.08896375,3321.8,3321.6,0.55]
[1737912465763,0.08896375,3321.8,3321.4,0.55]
[1737912465952,0.08896375,3321.8,3321.4,3.56076]
[1737912478631,3.09939375,3321.8,3321.3,0.55]
[1737912478931,0.8294,3321.7,3321.3,3.56085]
[1737912479429,0.08931982,3321.6,3321.3,3.56085]
[1737912480280,0.08931982,3321.6,3320.9,0.7841]
[1737912480463,3.01083,3321.4,3320.8,3.01127]
[1737912480671,0.08929688,3321.3,3320.8,3.01127]
[1737912481394,0.48224957,3321.3,3320.6,3.79558]
[1737912481578,3.81034,3321.2,3320.4,3.01166]
[1737912481759,3.01115,3321.0,3320.4,3.01166]
[1737912482162,3.01115,3321.0,3320.5,0.55]
[1737912482479,0.08918775,3320.9,3320.5,0.55]
[1737912483294,0.7993,3320.8,3320.5,0.55]
[1737912483645,0.08881439,3320.7,3320.5,0.55]
[1737912483844,0.7993,3320.8,3320.5,0.55]
[1737912484044,0.08881439,3320.7,3320.5,0.55]
[1737912484246,0.7993,3320.8,3320.5,0.55]
[1737912484497,0.08881439,3320.7,3320.5,0.55]
[1737912484785,0.08881439,3320.7,3320.2,3.01183]
[1737912485078,0.08850416,3320.6,3320.3,0.55]
[1737912485381,0.7993,3320.8,3320.3,3.56172]
[1737912485581,0.08850416,3320.5,3320.3,3.56172]
[1737912485792,0.7993,3320.8,3320.3,3.56172]
[1737912486246,0.08847544,3320.7,3320.3,3.56172]
[1737912486445,0.7993,3320.8,3320.3,3.56172]
[1737912486677,0.08847544,3320.7,3320.3,3.56172]
[1737912486890,0.7993,3320.8,3320.3,3.56172]
[1737912487062,0.08847544,3320.6,3320.3,3.56172]
[1737912487261,0.7993,3320.8,3320.3,3.56172]
[1737912487476,0.08847544,3320.7,3320.3,3.56172]
[1737912487681,0.7993,3320.8,3320.3,3.56172]
[1737912487846,0.08847544,3320.7,3320.3,3.56172]
[1737912488191,0.7993,3320.8,3320.3,3.56172]
[1737912488348,0.08847544,3320.6,3320.3,3.56172]
[1737912488698,0.08847544,3320.5,3320.3,3.56172]
[1737912489052,0.7993,3320.8,3320.3,3.56172]
[1737912489252,0.08847544,3320.7,3320.3,3.56172]
[1737912489486,0.7993,3320.8,3320.3,3.56172]
[1737912489751,0.08847544,3320.6,3320.3,3.56172]
[1737912489982,0.7993,3320.8,3320.3,3.56172]
[1737912490167,0.08847544,3320.5,3320.3,3.56172]
[1737912490377,0.7993,3320.8,3320.3,3.56172]
[1737912490579,0.08847544,3320.4,3320.3,3.56172]
[1737912490783,0.7993,3320.8,3320.1,3.84148]
[1737912490784,3.81069,3320.8,3320.1,3.84148]
[1737912490949,0.08847544,3320.4,3320.1,3.84148]
[1737912491150,3.81069,3320.8,3320.2,0.55]
[1737912491349,0.08847544,3320.3,3320.2,0.55]
[1737912491649,0.08847544,3320.3,3320.2,3.56186]
[1737912491853,3.81069,3320.8,3320.2,3.56186]
[1737912492092,0.08838927,3320.7,3320.2,3.56186]
[1737912495009,0.08838927,3320.7,3320.2,0.55]
[1737912495173,3.09980927,3320.7,3320.2,0.55]
[1737912497815,3.09980927,3320.7,3320.4,0.55]
[1737912498008,0.08838927,3320.7,3320.4,0.55]
[1737912498306,0.7993,3320.8,3320.4,0.55]
[1737912498611,0.08818816,3320.6,3320.4,0.55]
[1737912498820,0.7993,3320.8,3320.6,0.55]
[1737912499782,0.08818816,3320.7,3320.4,0.55]
[1737912500194,0.7993,3320.8,3320.4,0.55]
[1737912500809,0.08818816,3320.7,3320.6,0.55]
[1737912501108,0.7993,3320.8,3320.6,0.55]
[1737912501275,0.08818816,3320.7,3320.6,0.55]
[1737912501473,0.7993,3320.8,3320.6,0.55]
[1737912501780,0.08818816,3320.7,3320.6,0.55]
[1737912502116,3.01141,3320.7,3320.3,0.55]
[1737912502424,3.09959816,3320.7,3320.3,0.55]
[1737912503665,3.09959816,3320.7,3320.4,0.11750345]
[1737912504771,3.09959816,3320.7,3320.6,0.55]
[1737912506119,3.09959816,3320.7,3320.6,0.66750345]
[1737912508326,0.08818816,3320.7,3320.6,0.66750345]
[1737912508925,0.08812495,3320.7,3320.6,0.66750345]
[1737912509679,3.81065,3320.8,3320.6,0.66750345]
[1737912509875,0.08812495,3320.7,3320.6,0.66750345]
[1737912510078,4.49283,3320.8,3320.6,0.66750345]
[1737912510277,0.08812495,3320.7,3320.6,0.66750345]
[1737912510481,4.49283,3320.8,3320.6,0.66750345]
[1737912510794,0.08812495,3320.7,3320.6,0.66750345]
[1737912511181,4.49283,3320.8,3320.6,0.66750345]
[1737912511382,0.08815368,3320.7,3320.6,0.66750345]
[1737912511724,4.49283,3320.8,3320.6,0.66750345]
[1737912511968,0.08815368,3320.7,3320.6,0.66750345]
[1737912512082,3.09956368,3320.7,3320.6,0.66750345]
[1737912516342,3.85880305,3320.7,3320.6,0.66750345]
[1737912521655,3.85880305,3320.7,3320.6,0.11750345]
[1737912523736,4.46661422,3320.7,3320.6,0.11750345]
[1737912527372,0.7912,3320.1,3319.0,0.8304]
[1737912527582,3.01216,3319.9,3319.0,3.84335]
[1737912527731,3.01238,3319.7,3319.0,3.84335]
[1737912527932,3.0125,3319.5,3319.0,3.84335]
[1737912528170,3.0125,3319.5,3319.1,0.55]
[1737912528374,3.0125,3319.5,3319.0,0.8304]
[1737912528545,0.08777436,3319.4,3319.0,0.8304]
[1737912528873,0.08777436,3319.4,3319.1,0.55]
[1737912529170,0.08777436,3319.4,3319.0,0.8304]
[1737912530530,0.08777436,3319.4,3319.1,0.55]
[1737912530755,3.01259,3319.4,3319.1,0.55]
[1737912530958,0.0870443,3319.3,3319.1,0.55]
[1737912531689,0.08684881,3319.2,3319.1,0.55]
[1737912532290,3.0125,3319.5,3319.1,0.55]
[1737912532460,0.08684306,3319.4,3319.1,0.55]
[1737912537484,3.09943306,3319.4,3319.1,0.55]
[1737912537685,3.01259,3319.4,3319.1,0.55]
[1737912537889,0.08683731,3319.3,3319.1,0.55]
[1737912540413,3.01251,3319.5,3319.1,0.55]
[1737912540561,0.08679131,3319.2,3319.1,0.55]
[1737912540964,3.01251,3319.5,3319.1,0.55]
[1737912541204,0.08679131,3319.2,3319.1,0.55]
[1737912541412,3.01251,3319.5,3319.1,0.55]
[1737912541613,0.08679131,3319.2,3319.1,0.55]
[1737912541794,3.01251,3319.5,3319.1,0.55]
[1737912541971,0.08679131,3319.2,3319.1,0.55]
[1737912542164,3.01251,3319.5,3319.1,0.55]
[1737912542366,0.08679131,3319.2,3319.1,0.55]
[1737912542597,3.01251,3319.5,3319.1,0.55]
[1737912542774,0.08679131,3319.2,3319.1,0.55]
[1737912543080,3.01251,3319.5,3319.1,0.55]
[1737912543505,0.08673954,3319.4,3319.1,0.55]
[1737912544917,0.08673954,3319.4,3319.3,4.32078]
[1737912545269,3.01198,3320.1,3319.5,3.77059]
[1737912545511,3.01198,3320.1,3319.6,0.55]
[1737912546015,3.01206,3320.0,3319.6,0.55]
[1737912559706,0.08710181,3319.9,3319.6,0.55]
[1737912562743,3.01189,3320.2,3319.6,0.55]
[1737912562951,0.08713054,3319.8,3319.6,0.55]
[1737912563121,0.08713054,3319.7,3319.6,0.55]
[1737912563445,3.01189,3320.2,3319.6,0.55]
[1737912563651,0.08713054,3319.7,3319.6,0.55]
[1737912563817,3.012,3320.1,3319.6,0.55]
[1737912564018,0.08713054,3319.7,3319.6,0.55]
[1737912564219,3.012,3320.1,3319.6,0.55]
[1737912564420,0.08713054,3319.7,3319.6,0.55]
[1737912564658,3.012,3320.1,3319.6,0.55]
[1737912564949,0.08713054,3319.7,3319.6,0.55]
[1737912565146,3.012,3320.1,3319.6,0.55]
[1737912565351,0.08713054,3319.7,3319.6,0.55]
[1737912566248,3.012,3320.1,3319.6,0.55]
[1737912566445,0.08713054,3319.7,3319.6,0.55]
[1737912566744,3.012,3320.1,3319.6,0.55]
[1737912566952,0.08713054,3319.7,3319.6,0.55]
[1737912567249,3.012,3320.1,3319.6,0.55]
[1737912567457,0.08713054,3319.7,3319.6,0.55]
[1737912567612,3.012,3320.1,3319.6,0.55]
[1737912567803,0.08717079,3319.7,3319.6,0.55]
[1737912568004,3.012,3320.1,3319.6,0.55]
[1737912568209,0.08716504,3319.7,3319.6,0.55]
[1737912568415,3.012,3320.1,3319.6,0.55]
[1737912568617,0.08716504,3319.7,3319.6,0.55]
[1737912568860,3.012,3320.1,3319.6,0.55]
[1737912569063,0.08716504,3319.7,3319.6,0.55]
[1737912569634,0.08716504,3319.7,3319.6,3.56241]
[1737912569840,3.012,3320.1,3319.6,3.56241]
[1737912570055,0.08716504,3319.7,3319.6,3.56241]
[1737912570522,3.012,3320.1,3319.6,3.56241]
[1737912570723,0.08716504,3320.0,3319.6,3.56241]
[1737912575138,0.08716504,3320.0,3319.6,0.55]
[1737912579859,3.09921504,3320.0,3319.6,0.55]
[1737912580053,0.6111215,3319.9,3319.6,0.55]
[1737912580455,0.08719377,3319.8,3319.6,0.55]
[1737912581146,0.08719377,3319.8,3319.1,3.01282]
[1737912581341,3.0124,3319.7,3319.1,3.01282]
[1737912581685,3.01243,3319.6,3319.1,3.01282]
[1737912581886,3.09962377,3319.6,3319.2,0.55]
[1737912582571,0.08719377,3319.6,3319.2,0.55]
[1737912583088,0.08719377,3319.6,3319.2,3.56276]
[1737912586891,0.08719377,3319.6,3319.3,3.01267]
[1737912587062,0.08719377,3319.6,3319.4,0.55]
[1737912591484,0.08719377,3319.6,3319.2,0.55]
[1737912593265,0.08719377,3319.6,3319.2,3.56271]
[1737912593485,0.47852715,3319.6,3319.1,3.01284]
[1737912595113,0.47852715,3319.6,3319.2,0.55]
[1737912596984,0.47852715,3319.6,3319.3,0.55]
[1737912597189,0.08719377,3319.6,3319.3,0.55]
[1737912598573,0.08719377,3319.6,3319.5,4.3553]
[1737912598768,5.25,3320.6,3320.3,3.01177]
[1737912599001,0.08401515,3320.5,3320.4,3.56167]
[1737912599307,0.8314,3320.9,3320.4,3.56167]
[1737912599640,0.909256,3320.8,3320.4,0.55]
[1737912599823,0.99345542,3320.8,3320.4,0.55]
[1737912600117,4.00478542,3320.8,3320.4,0.55]
[1737912600276,4.00478542,3320.8,3320.2,3.56184]
[1737912601001,3.01142,3320.7,3320.2,0.55]
[1737912601173,0.70162054,3320.6,3320.2,0.55]
[1737912602198,0.70162054,3320.6,3319.8,3.01214]
[1737912602384,3.80486,3320.5,3319.8,3.01214]
[1737912602601,3.01168,3320.4,3319.9,0.55]
[1737912602980,3.01168,3320.4,3319.8,3.01214]
[1737912603283,0.380488,3320.3,3319.8,3.01214]
[1737912603690,0.380488,3320.3,3319.9,0.55]
[1737912604191,3.01186,3320.2,3319.7,0.7684]
[1737912604393,0.7932,3320.1,3319.6,3.01236]
[1737912604580,1.2117548,3320.1,3319.6,3.01236]
[1737912606636,4.2237648,3320.1,3319.4,3.78098]
[1737912606806,4.2237648,3320.1,3319.5,3.01249]
[1737912607003,3.01208,3320.0,3319.4,3.01258]
[1737912607348,0.8022,3319.7,3319.1,8.32283]
[1737912607759,0.8022,3319.7,3319.2,0.55]
[1737912608055,0.8022,3319.7,3319.2,3.56277]
[1737912608614,0.8022,3319.7,3319.4,0.55]
[1737912609722,3.81435,3319.9,3319.5,0.55]
[1737912609948,1.103407,3319.9,3319.5,0.55]
[1737912611954,0.8022,3319.9,3319.5,0.55]
[1737912612724,6.0522,3320.1,3319.7,0.55]
[1737912614947,9.06422,3320.1,3319.6,0.55]
[1737912615621,3.01207,3320.0,3319.6,0.55]
[1737912615825,3.01207,3320.0,3319.5,0.55]
[1737912617566,0.08418793,3319.9,3319.5,0.55]
[1737912620280,3.01228,3319.8,3319.3,0.801]
[1737912620480,3.01228,3319.8,3319.2,3.01274]
[1737912620663,0.08420521,3319.7,3319.3,0.55]
[1737912621039,3.01228,3319.8,3319.3,0.55]
[1737912621356,0.799,3319.6,3319.3,0.55]
[1737912621536,0.08422824,3319.5,3319.3,0.55]
[1737912627287,0.08422824,3319.5,3319.3,3.56264]
[1737912627484,0.08422824,3319.5,3319.4,3.56259]
[1737912627991,0.7573,3319.9,3319.5,0.55]
[1737912628187,1.14140035,3319.9,3319.5,0.55]
[1737912628696,4.15355035,3319.9,3319.5,0.55]
[1737912629059,7.16577035,3319.9,3319.3,0.55]
[1737912629673,4.15355035,3319.9,3319.3,0.55]
[1737912631188,3.01229,3319.8,3319.3,0.55]
[1737912631486,3.72887404,3319.8,3319.3,0.55]
[1737912633895,0.71658404,3319.8,3319.3,3.56268]
[1737912634052,4.15355035,3319.9,3319.3,3.56268]
[1737912635195,0.7573,3319.9,3319.5,3.56241]
[1737912635357,8.26197,3320.1,3319.7,0.55]
[1737912637053,8.26197,3320.1,3319.6,0.55]
[1737912637305,3.01211,3320.0,3319.6,0.55]
[1737912637485,3.01211,3320.0,3319.5,0.55]
[1737912637657,3.68801596,3320.0,3319.5,0.55]
[1737912638399,0.08425126,3319.9,3319.5,0.55]
[1737912640703,0.7573,3319.8,3319.5,0.55]
[1737912640995,0.08422246,3319.7,3319.5,0.55]
[1737912641298,0.7573,3319.8,3319.5,0.55]
[1737912641462,0.08422246,3319.6,3319.5,0.55]
[1737912641662,0.7573,3319.8,3319.5,0.55]
[1737912642306,0.08422246,3319.7,3319.5,0.55]
[1737912642594,0.7573,3319.8,3319.5,0.55]
[1737912642902,0.08422246,3319.7,3319.5,0.55]
[1737912643406,0.08422246,3319.6,3319.5,0.55]
[1737912643561,0.7573,3319.8,3319.5,0.55]
[1737912643763,0.08422246,3319.7,3319.5,0.55]
[1737912644107,0.7573,3319.8,3319.5,0.55]
[1737912644291,0.08422246,3319.6,3319.5,0.55]
[1737912644464,0.7573,3319.8,3319.5,0.55]
[1737912644673,0.08422246,3319.6,3319.5,0.55]
[1737912644878,0.7573,3319.8,3319.5,0.55]
[1737912645078,0.08422246,3319.6,3319.5,0.55]
[1737912645278,0.7573,3319.8,3319.5,0.55]
[1737912645500,0.08422246,3319.6,3319.2,3.82843]
[1737912645706,0.7573,3319.8,3319.2,3.82843]
[1737912645877,0.08422246,3319.5,3319.3,0.55]
[1737912646060,3.76955,3319.8,3319.3,0.55]
[1737912646261,0.08422246,3319.4,3319.3,0.55]
[1737912646498,3.76955,3319.8,3319.3,0.55]
[1737912646964,0.08422246,3319.7,3319.3,0.55]
[1737912647299,3.76955,3319.8,3319.3,0.55]
[1737912647503,0.08422246,3319.6,3319.3,0.55]
[1737912647703,3.76955,3319.8,3319.3,0.55]
[1737912647907,0.08422246,3319.5,3319.3,0.55]
[1737912648076,3.76955,3319.8,3319.3,0.55]
[1737912648278,0.08422246,3319.4,3319.3,0.55]
[1737912648776,3.76955,3319.8,3319.3,0.55]
[1737912648981,0.08422246,3319.4,3319.3,0.55]
[1737912649174,3.76955,3319.8,3319.3,0.55]
[1737912649381,0.08422246,3319.4,3319.3,3.56268]
[1737912649612,3.76955,3319.8,3319.3,3.56268]
[1737912649905,0.08422246,3319.4,3319.3,3.56268]
[1737912650075,3.76955,3319.8,3319.3,3.56268]
[1737912650279,0.08422246,3319.4,3319.3,3.56268]
[1737912650483,3.76955,3319.8,3319.3,3.56268]
[1737912650805,0.7573,3319.8,3319.3,3.56268]
[1737912650959,0.08421096,3319.7,3319.3,3.56268]
[1737912651162,0.7573,3319.8,3319.3,3.56268]
[1737912651468,0.08421096,3319.6,3319.3,3.56268]
[1737912651805,0.08421096,3319.5,3319.3,3.56268]
[1737912652010,0.7573,3319.8,3319.3,3.56268]
[1737912652314,0.08421096,3319.4,3319.3,3.56268]
[1737912652495,0.7573,3319.8,3319.5,0.55]
[1737912653409,0.08421096,3319.7,3319.5,0.55]
[1737912653618,0.7573,3319.8,3319.5,0.55]
[1737912653906,0.08421096,3319.6,3319.5,0.55]
[1737912654090,0.7573,3319.8,3319.5,0.55]
[1737912654292,0.08421096,3319.6,3319.5,0.55]
[1737912654793,0.7573,3319.8,3319.5,0.55]
[1737912655100,0.08421096,3319.6,3319.5,0.55]
[1737912655286,0.7573,3319.8,3319.5,0.55]
[1737912655807,0.08421096,3319.7,3319.5,0.55]
[1737912656105,0.7573,3319.8,3319.5,0.55]
[1737912656305,0.08421096,3319.6,3319.5,0.55]
[1737912656765,0.7573,3319.8,3319.5,0.55]
[1737912656966,0.08421096,3319.6,3319.5,0.55]
[1737912657167,0.7573,3319.8,3319.5,0.55]
[1737912657367,0.08421096,3319.6,3319.5,0.55]
[1737912657668,0.7573,3319.8,3319.5,0.55]
[1737912657869,0.08421096,3319.6,3319.5,0.55]
[1737912658069,0.7573,3319.8,3319.5,0.55]
[1737912658308,0.08421096,3319.6,3319.5,0.55]
[1737912658505,0.7573,3319.8,3319.5,0.55]
[1737912658704,0.08421096,3319.6,3319.5,0.55]
[1737912659011,3.09670096,3319.6,3319.0,3.01287]
[1737912659310,3.91950096,3319.6,3319.0,3.01287]
[1737912659686,3.91950096,3319.6,3319.1,0.55]
[1737912660509,3.91950096,3319.6,3319.1,3.56282]
[1737912663917,0.90701096,3319.6,3319.1,3.56282]
[1737912664088,0.90701096,3319.6,3319.3,0.55]
[1737912665217,0.08421096,3319.6,3319.4,3.56253]
[1737912665515,0.8228,3319.9,3319.4,3.56253]
[1737912665717,0.0841937,3319.5,3319.4,3.56253]
[1737912665889,0.8228,3319.9,3319.4,3.56253]
[1737912666089,0.0841937,3319.5,3319.4,3.56253]
[1737912666285,3.83495,3319.9,3319.4,3.56253]
[1737912666489,0.0841937,3319.5,3319.4,3.56253]
[1737912666689,3.83495,3319.9,3319.4,3.56253]
[1737912667213,0.0841937,3319.8,3319.4,3.56253]
[1737912669119,0.0841937,3319.8,3319.4,0.55]
[1737912670931,0.0841937,3319.8,3319.4,3.56258]
[1737912678646,0.0841937,3319.8,3319.4,0.55]
[1737912681058,0.0841937,3319.8,3319.4,3.56258]
[1737912689068,0.0841937,3319.8,3319.4,0.55]
[1737912690171,3.0964237,3319.8,3319.4,0.55]
[1737912690371,4.31456007,3319.8,3319.4,0.55]
[1737912690930,4.31456007,3319.8,3319.3,0.55]
[1737912692296,3.01248,3319.6,3318.9,3.01297]
[1737912692431,3.01256,3319.5,3318.9,3.01297]
[1737912692631,3.09656365,3319.5,3319.0,0.55]
[1737912693470,3.09656365,3319.5,3319.0,3.56293]
[1737912693471,0.08400365,3319.5,3319.0,3.56293]
[1737912693682,3.01243,3319.6,3319.0,3.56293]
[1737912693982,0.08390573,3319.4,3319.0,0.55]
[1737912694137,0.08380783,3319.5,3319.0,0.55]
[1737912695176,3.09630783,3319.5,3319.0,0.55]
[1737912695478,0.08380783,3319.5,3319.0,0.55]
[1737912695778,0.8266,3319.3,3319.0,0.55]
[1737912696384,0.08380783,3319.2,3319.0,0.55]
[1737912696597,0.8266,3319.3,3319.0,0.55]
[1737912696884,0.08380783,3319.1,3319.0,0.55]
[1737912697070,0.8266,3319.3,3319.0,0.55]
[1737912697271,0.08380783,3319.1,3319.0,0.55]
[1737912697741,0.8266,3319.3,3319.0,0.55]
[1737912698169,0.08380783,3319.2,3319.0,0.55]
[1737912698383,0.8266,3319.3,3319.0,0.55]
[1737912698748,0.08380783,3319.2,3319.0,0.55]
[1737912699198,0.8266,3319.3,3319.0,0.55]
[1737912699485,3.01297,3319.0,3318.5,3.01338]
[1737912699644,0.8266,3318.9,3318.5,3.01338]
[1737912700063,0.08358895,3318.8,3318.6,0.55]
[1737912702282,0.08358895,3318.8,3318.3,3.83628]
[1737912702784,0.08358895,3318.8,3318.5,0.55]
[1737912705600,0.08358895,3318.8,3318.3,0.8227]
[1737912705905,3.8397,3318.9,3318.4,0.55]
[1737912706205,0.08345645,3318.8,3318.4,0.55]
[1737912712017,3.09666645,3318.8,3318.1,3.81875]
[1737912713817,0.7673,3318.5,3317.9,3.01392]
[1737912714131,0.7673,3318.5,3318.1,0.55]
[1737912714420,0.08289762,3318.4,3318.1,0.55]
[1737912715517,0.08289762,3318.4,3318.3,0.55]
[1737912716998,0.08289762,3318.4,3318.3,0.66744739]
[1737912717200,3.01323,3318.7,3318.3,0.66744739]
[1737912717407,0.08279389,3318.4,3318.3,0.66744739]
[1737912717717,0.08279389,3318.6,3318.3,0.66744739]
[1737912717874,0.7511,3318.8,3318.3,0.66744739]
[1737912718074,0.08279389,3318.5,3318.3,0.66744739]
[1737912718274,3.01323,3318.7,3318.3,0.66744739]
[1737912718520,0.08279389,3318.4,3318.3,0.66744739]
[1737912718730,3.01323,3318.7,3318.3,0.66744739]
[1737912719020,0.08279389,3318.4,3318.3,0.66744739]
[1737912719189,3.01323,3318.7,3318.3,0.66744739]
[1737912719389,0.08279389,3318.6,3318.3,0.66744739]
[1737912719590,0.08279389,3318.6,3318.5,0.55]
[1737912720129,0.08279389,3318.6,3318.4,0.11744739]
[1737912720130,0.76882628,3318.6,3318.4,0.11744739]
[1737912720292,3.0134,3318.5,3318.4,0.11744739]
[1737912720493,3.09617389,3318.6,3318.4,0.11744739]
[1737912720706,3.01338,3318.6,3318.4,0.11744739]
[1737912720908,3.01338,3318.6,3318.5,0.11744739]
[1737912722733,3.76425,3318.8,3318.5,0.11744739]
[1737912722887,4.440675,3318.8,3318.5,0.11744739]
[1737912724509,4.440675,3318.8,3318.6,0.11744739]
[1737912725590,4.440675,3318.8,3318.7,0.11744739]
[1737912728445,4.52330179,3318.8,3318.7,0.11744739]
[1737912730113,1.51015179,3318.8,3318.7,0.11744739]
[1737912733240,0.83372679,3318.8,3318.7,0.66744739]
[1737912733538,0.08262679,3318.8,3318.7,0.94917109]
[1737912733922,3.0,3319.0,3318.8,0.55]
[1737912734437,6.01297,3319.0,3318.7,0.39917109]
[1737912734820,6.01297,3319.0,3318.8,0.2817237]
[1737912735140,6.01297,3319.0,3318.8,0.39917109]
[1737912735442,7.43722192,3319.0,3318.8,0.39917109]
[1737912736005,7.43722192,3319.0,3318.9,0.66744739]
[1737912736331,7.43722192,3319.0,3318.9,0.94917109]
[1737912739111,4.43722192,3319.0,3318.9,0.94917109]
[1737912739311,3.01297,3319.0,3318.9,0.94917109]
[1737912743026,3.01297,3319.0,3318.9,0.66744739]
[1737912743253,3.09572932,3319.0,3318.9,0.66744739]
[1737912744058,0.08275932,3319.0,3318.9,0.66744739]
[1737912756115,0.08275932,3319.0,3318.9,4.45468739]
[1737912756255,0.08275932,3319.0,3318.9,4.48481128]
[1737912756561,0.7982,3320.0,3319.6,0.55]
[1737912756928,0.08281692,3319.9,3319.6,0.55]
[1737912757477,0.08281692,3319.9,3319.8,0.55]
[1737912758566,0.08281692,3319.9,3319.8,0.66744739]
[1737912759369,8.26197,3320.1,3319.8,0.66744739]
[1737912759578,0.08281692,3319.9,3319.8,0.66744739]
[1737912759786,8.26197,3320.1,3319.8,0.66744739]
[1737912759935,0.08281692,3319.9,3319.8,0.66744739]
[1737912760133,8.26197,3320.1,3319.8,0.66744739]
[1737912760334,0.08281692,3319.9,3319.8,0.66744739]
[1737912760666,8.26197,3320.1,3319.8,0.66744739]
[1737912760969,0.08323746,3319.9,3319.8,0.66744739]
[1737912761173,8.26197,3320.1,3319.8,0.66744739]
[1737912761470,0.08323746,3319.9,3319.8,0.66744739]
[1737912761630,8.26197,3320.1,3319.8,0.66744739]
[1737912761833,3.09533746,3320.0,3319.8,0.66744739]
[1737912762399,0.08323746,3320.0,3319.8,0.66744739]
[1737912763682,0.08323746,3320.0,3319.9,0.66744739]
[1737912770404,0.08323746,3320.0,3319.9,4.49657739]
[1737912770760,0.61437703,3320.8,3320.2,3.01177]
[1737912771086,0.61437703,3320.8,3320.3,1.367]
[1737912771302,6.01123,3320.9,3320.3,1.367]
[1737912771717,6.01123,3320.9,3320.3,4.37875]
[1737912771913,6.01123,3320.9,3320.5,0.55]
[1737912772921,9.01408,3321.0,3320.5,0.55]
[1737912772922,5.25,3321.0,3320.5,3.56154]
[1737912773129,5.25,3321.0,3320.4,0.11744739]
[1737912773130,5.25,3321.0,3320.7,0.55]
[1737912773311,0.08437218,3320.9,3320.7,0.55]
[1737912773616,0.6903141,3320.9,3320.7,0.55]
[1737912775432,0.6903141,3320.9,3320.4,0.55]
[1737912775724,0.6903141,3320.9,3320.6,0.55]
[1737912776093,0.08437218,3320.9,3320.8,0.55]
[1737912780521,0.08437218,3320.9,3320.8,0.66695028]
[1737912781429,8.26087,3321.3,3320.8,3.67827028]
[1737912781633,0.08489605,3320.9,3320.8,3.67827028]
[1737912781920,5.25,3321.3,3321.0,0.55]
[1737912782218,8.26072,3321.5,3321.0,0.55]
[1737912782810,5.25,3321.5,3321.0,3.56112]
[1737912783010,5.25,3321.5,3321.2,0.55]
[1737912784156,5.25,3321.6,3321.2,0.55]
[1737912785855,5.25,3321.6,3321.4,0.55]
[1737912787309,3.76886,3321.9,3321.4,3.56075]
[1737912787928,0.7585,3321.9,3321.4,3.56075]
[1737912788332,0.08549462,3321.8,3321.4,3.56075]
[1737912789126,8.26025,3322.0,3321.4,3.56075]
[1737912789457,0.08555216,3321.7,3321.4,3.56075]
[1737912789607,8.26025,3322.0,3321.4,3.56075]
[1737912789811,0.08557517,3321.6,3321.4,3.56075]
[1737912790042,8.26025,3322.0,3321.4,3.56075]
[1737912790243,0.08557517,3321.5,3321.4,3.56075]
[1737912790450,8.26025,3322.0,3321.4,3.56075]
[1737912790631,0.08557517,3321.5,3321.4,3.56075]
[1737912790832,5.25,3322.0,3321.6,0.55]
[1737912791238,5.25,3322.0,3321.6,1.3192]
[1737912793367,5.25,3322.0,3321.6,4.32979]
[1737912793567,5.25,3322.0,3321.6,1.3192]
[1737912794433,3.0102,3322.1,3321.6,1.3192]
[1737912794977,3.01016,3322.1,3321.6,1.3192]
[1737912797180,3.01025,3322.0,3321.6,1.3192]
[1737912798846,3.01025,3322.0,3321.8,0.55]
[1737912800136,3.01025,3322.0,3321.7,0.55]
[1737912801283,3.01025,3322.0,3321.8,0.11702519]
[1737912802474,0.7603,3323.0,3322.2,1.3437]
[1737912802776,8.25922,3323.2,3322.6,3.00962]
[1737912802979,5.25,3323.2,3322.9,0.55]
[1737912803141,3.0,3323.2,3322.9,0.55]
[1737912803472,0.08025951,3323.1,3322.9,0.55]
[1737912804136,3.76909,3323.6,3323.1,0.55]
[1737912804486,8.25861,3323.8,3323.4,4.35266]
[1737912804487,0.08025951,3323.5,3323.4,4.35266]
[1737912804777,0.1769733,3324.1,3323.7,3.00869]
[1737912805114,0.08025951,3324.0,3323.9,4.35214]
[1737912805414,0.1769733,3324.1,3324.0,0.55]
[1737912805704,0.25723281,3324.1,3324.0,0.55]
[1737912805921,0.25723281,3324.1,3324.0,3.55842]
[1737912806081,0.25723281,3324.1,3324.0,7.38219882]
[1737912806299,0.1769733,3324.1,3324.0,7.35212]
[1737912806492,0.14178817,3325.3,3324.2,1.3826]
[1737912806724,0.14178817,3325.3,3325.0,4.39008]
[1737912806931,0.08132471,3325.2,3325.0,4.39008]
[1737912807093,0.14178817,3325.3,3325.0,1.3826]
[1737912807280,0.14178817,3325.3,3325.0,3.8401]